fUST/lending_fUST_20251117
["ID","MTS","AMOUNT","RATE_DAILY","PERIOD"]
[394140531,1763318879705,-500.0,0.00030508,2]
[394140532,1763318879733,-500.0,0.00030508,2]
[394140533,1763318879758,-500.0,0.00030508,2]
[394140534,1763318879783,-500.0,0.00030508,2]
[394140535,1763318879809,-500.0,0.00030508,2]
[394140536,1763318879834,-500.0,0.00030508,2]
[394140537,1763318879859,-500.0,0.00030508,2]
[394140538,1763318879885,-500.0,0.00030508,2]
[394140539,1763318879911,-306.27269639,0.00030508,2]
[394140540,1763318879938,-500.0,0.00030508,2]
[394140541,1763318879965,-500.0,0.00030508,2]
[394140542,1763318879991,-500.0,0.00030508,2]
[394140543,1763318880019,-500.0,0.00030508,2]
[394140544,1763318880044,-656.99127554,0.00030523,50]
[394140545,1763318880067,-202.12735642,0.00030568,2]
[394140546,1763318880090,-656.99127554,0.00030608,54]
[394140547,1763318880113,-656.99127554,0.00030694,57]
[394140548,1763318880135,-500.0,0.00030727,5]
[394140549,1763318880160,-500.0,0.00030727,5]
[394140550,1763318880188,-656.99127554,0.00030779,61]
[394140551,1763318880211,-656.99127554,0.00030865,65]
[394140552,1763318880237,-656.99127554,0.0003095,69]
[394140553,1763318880262,-656.99127554,0.00031035,72]
[394140554,1763318880288,-656.99127554,0.00031121,76]
[394140555,1763318880316,-656.99127554,0.00031206,80]
[394140556,1763318880340,-151.39428571,0.00031275,5]
[394140557,1763318880370,-656.99127554,0.00031292,83]
[394140558,1763318880393,-656.99127554,0.00031377,87]
[394140559,1763318880417,-656.99127554,0.00031462,91]
[394140560,1763318880441,-202.32948378,0.00031543,2]
[394140561,1763318880465,-656.99127554,0.00031548,95]
[394140562,1763318880488,-656.99127554,0.00031633,98]
[394140563,1763318880512,-656.99127554,0.00031719,102]
[394140564,1763318880534,-656.99127554,0.00031804,106]
[394140565,1763318880556,-656.99127554,0.0003189,110]
[394140566,1763318880578,-287.0,0.00031897,2]
[394140567,1763318880600,-258.0,0.00031961,2]
[394140568,1763318880625,-600.0,0.00032323,7]
[394140569,1763318880646,-600.0,0.00032364,7]
[394140570,1763318880668,-194.6969528,0.00032877,7]
[394140571,1763318880690,-250.37966558,0.00032877,7]
[394140572,1763318880715,-1024.29,0.00033113,2]
[394140573,1763318880736,-272.66452311,0.000332,117]
[394140574,1763318880757,-600.0,0.00033422,7]
[394140575,1763318880781,-298.8512944,0.00033861,2]
[394140576,1763318880804,-285.0,0.00033961,120]
[394140577,1763318880826,-600.0,0.00034323,7]
[394140578,1763318880853,-272.66452308,0.00034404,120]
[394140579,1763318880876,-500.0,0.00034841,7]
[394140580,1763318881032,-500.0,0.00035245,30]
[394140581,1763318881056,-600.0,0.00035271,30]
[394140582,1763318881079,-600.0,0.0003541,30]
[394140583,1763318881101,-500.0,0.00035653,30]
[394140584,1763318881127,-298.85129438,0.00035869,2]
[394140585,1763318881151,-312.0,0.00035961,120]
[394140586,1763318881179,-2048.58,0.00036123,2]
[394140587,1763318881208,-500.0,0.00036953,30]
[394140588,1763318881233,-600.0,0.00037002,30]
[394140589,1763318881256,-298.85129438,0.00037876,2]
[394140590,1763318881277,-152.3520377,0.000379,2]
[394140591,1763318881300,-339.0,0.00037961,120]
[394140592,1763318881324,-500.0,0.00037975,7]
[394140593,1763318881349,-532.03388482,0.00037975,7]
[394140594,1763318881375,-2000.0,0.00037976,20]
[394140595,1763318881397,-500.0,0.00037976,2]
[394140596,1763318881421,-151.0,0.00037976,31]
[394140597,1763318881443,-151.0,0.00037976,31]
[394140598,1763318881466,-151.0,0.00037976,31]
[394140599,1763318881487,-150.0,0.00037976,20]
[394140600,1763318881514,-4640.71,0.00037977,10]
[394140601,1763318881537,-150.0,0.000381,120]
[394140602,1763318881559,-293.28,0.000381,30]
[394140603,1763318881584,-5821.63,0.000381,14]
[394140604,1763318881608,-163.03,0.000381,7]
[394140605,1763318881632,-1919.27,0.000381,14]
[394140606,1763318881655,-196.833173,0.000381,2]
[394140607,1763318881679,-159.0,0.000382,120]
[394140608,1763318881701,-500.0,0.00038244,30]
[394140609,1763318881723,-500.0,0.0003829,14]
[394140610,1763318881746,-182489.377576,0.00038337,3]
[394140611,1763318881769,-2134.21446641,0.00038337,3]
[394140612,1763318881792,-500.0,0.00038338,30]
[394140613,1763318881815,-1000.0,0.00038356,120]
[394140614,1763318881837,-150.0,0.000384,120]
[394140615,1763318881862,-1100.0,0.00038438,20]
[394140616,1763318881886,-1100.0,0.00038438,20]
[394140617,1763318881910,-1100.0,0.00038438,20]
[394140618,1763318881933,-1100.0,0.00038438,20]
[394140619,1763318881957,-1100.0,0.00038438,20]
[394140620,1763318881978,-1674.943415,0.0003844,12]
[394140621,1763318882001,-255.7,0.00038442,20]
[394140622,1763318882024,-1030.0,0.0003846,20]
[394140623,1763318882048,-1000.0,0.0003846,20]
[394140624,1763318882072,-1000.0,0.0003846,12]
[394140625,1763318882096,-719.64708363,0.00038461,20]
[394140626,1763318882125,-1000.0,0.0003848,12]
[394140627,1763318882147,-1182.77842,0.0003848,12]
[394140628,1763318882170,-501.65392186,0.00038489,14]
[394140629,1763318882197,-1000.0,0.000385,12]
[394140630,1763318882220,-1000.0,0.000385,12]
[394140631,1763318882251,-600.0,0.00038507,30]
[394140632,1763318882275,-1000.0,0.00038517,20]
[394140633,1763318882299,-500.0,0.00038539,30]
[394140634,1763318882321,-500.0,0.00038539,15]
[394140635,1763318882345,-500.0,0.00038539,30]
[394140636,1763318882373,-500.0,0.00038539,10]
[394140637,1763318882397,-500.0,0.00038539,30]
[394140638,1763318882420,-377.21,0.00038539,30]
[394140639,1763318882445,-500.0,0.00038701,30]
[394140640,1763318882468,-156.750964,0.00038804,10]
[394140641,1763318882491,-9942.60270114,0.0003888,30]
[394140642,1763318882512,-1000.0,0.00038889,10]
[394140643,1763318882535,-160.0,0.0003892,10]
[394140644,1763318882556,-170.86129145,0.0003892,5]
[394140645,1763318882581,-182489.377576,0.0003899,3]
[394140646,1763318882606,-2134.21446641,0.0003899,3]
[394140647,1763318882633,-151.0,0.0003899,120]
[394140648,1763318882656,-151.0,0.0003899,120]
[394140649,1763318882680,-151.0,0.0003899,120]
[394140650,1763318882702,-64970.36688278,0.00039,10]
[394140651,1763318882723,-11536.4233971,0.00039023,2]
[394140652,1763318882747,-500.0,0.00039072,2]
[394140653,1763318882769,-600.0,0.00039119,30]
[394140654,1763318882792,-182489.377576,0.00039123,3]
[394140655,1763318882815,-2134.21446641,0.00039123,3]
[394140656,1763318882840,-3072.88,0.00039133,2]
[394140657,1763318882865,-182489.377576,0.0003917,3]
[394140658,1763318882889,-2134.21446641,0.0003917,3]
[394140659,1763318882913,-151.0,0.0003917,120]
[394140660,1763318882936,-200.849197,0.0003917,120]
[394140661,1763318882957,-400.0,0.00039173,5]
[394140662,1763318882980,-77185.64857039,0.0003918,120]
[394140663,1763318883003,-165.79056274,0.00039185,20]
[394140664,1763318883027,-500.0,0.00039194,30]
[394140665,1763318883049,-162.06859215,0.000392,120]
[394140666,1763318883071,-201.96566264,0.000392,120]
[394140667,1763318883097,-1989.98504341,0.000392,120]
[394140668,1763318883122,-521.96116622,0.000392,120]
[394140669,1763318883145,-812.04957899,0.000392,120]
[394140670,1763318883167,-190.66758594,0.000392,120]
[394140671,1763318883194,-160.64586151,0.000392,120]
[394140672,1763318883216,-180.47948158,0.000392,120]
[394140673,1763318883238,-194.86508242,0.000392,120]
[394140674,1763318883262,-182.22564381,0.000392,120]
[394140675,1763318883283,-1032.0,0.000393,24]
[394140676,1763318883304,-600.0,0.00039308,30]
[394140677,1763318883325,-600.0,0.00039618,30]
[394140678,1763318883346,-5231.46950228,0.00039649,2]
[394140679,1763318883370,-905.392276,0.00039654,2]
[394140680,1763318883390,-161.923838,0.00039671,30]
[394140681,1763318883411,-800.0,0.00039721,5]
[394140682,1763318883433,-156.750964,0.000398,5]
[394140683,1763318883455,-600.0,0.00039878,30]
[394140684,1763318883477,-918.48242749,0.0003989,120]
[394140685,1763318883498,-184.61519342,0.000399,120]
[394140686,1763318883524,-366.0,0.00039961,120]
[394140687,1763318883547,-161.923838,0.00039973,30]
[394140688,1763318883569,-2134.21446641,0.0003999,3]
[394140689,1763318883590,-1000.0,0.0004,10]
[394140690,1763318883612,-302.19,0.0004,2]
[394140691,1763318883633,-300.0,0.0004,2]
[394140692,1763318883654,-5000.0,0.0004,7]
[394140693,1763318883676,-5000.0,0.0004,20]
[394140694,1763318883701,-257.76,0.0004,7]
[394140695,1763318883729,-200.0,0.0004,120]
[394140696,1763318883751,-1200.70678,0.0004,2]
[394140697,1763318883773,-877.69178109,0.0004,120]
[394140698,1763318883793,-1133.19590483,0.0004,30]
[394140699,1763318883815,-167.55684583,0.0004,120]
[394140700,1763318883837,-150.04035256,0.0004,30]
[394140701,1763318883860,-452.62757016,0.0004,30]
[394140702,1763318883890,3867.26,0.00037977,10]
[394140703,1763318886960,150.0,0.0002589,2]
[394140704,1763318887331,177.0,0.0002789,2]
[394140705,1763318887699,204.0,0.0002989,2]
[394140706,1763318888076,231.0,0.0003189,2]
[394140707,1763318888392,3222.71,0.00037977,10]
[394140708,1763318888437,258.0,0.0003389,120]
[394140709,1763318888850,285.0,0.0003589,120]
[394140710,1763318889255,312.0,0.0003789,120]
[394140711,1763318889634,339.0,0.0003989,120]
[394140712,1763318899330,2685.59,0.00037977,10]
[394140713,1763318899520,417.56893297,0.000392,120]
[394140714,1763318900552,649.63966319,0.000392,120]
[394140715,1763318906563,309.41482401,0.00037887,2]
[394140716,1763318908138,160.43057434,0.000392,120]
[394140717,1763318909606,263.95,0.00038,30]
[394140718,1763318910255,2238.0,0.00037977,10]
[394140719,1763318912291,151.0,0.00037987,31]
[394140720,1763318915806,500.0,0.00037986,7]
[394140721,1763318916113,222.42371937,0.00037986,7]
[394140722,1763318916234,194.86508242,0.000392,120]
[394140723,1763318918433,1727.34,0.00038,14]
[394140724,1763318918965,450.0,0.00037986,15]
[394140725,1763318919404,180.47948159,0.000392,120]
[394140726,1763318919592,500.0,0.00037986,15]
[394140727,1763318920156,500.0,0.00037986,7]
[394140728,1763318920261,483.74629767,0.00037986,15]
[394140729,1763318920947,1865.0,0.00037977,10]
[394140730,1763318922322,350.0,0.00037986,15]
[394140731,1763318922610,170.35049375,0.00037986,15]
[394140732,1763318922646,500.0,0.00037986,7]
[394140733,1763318922681,422.91918849,0.00037986,7]
[394140734,1763318925048,164.21721063,0.000392,120]
[394140735,1763318931597,1554.16,0.00037977,10]
[394140736,1763318938584,1664.87829225,0.000392,120]
[394140737,1763318938929,456.62060899,0.00026763,2]
[394140738,1763318940843,1331.9026338,0.000392,120]
[394140739,1763318942236,1295.14,0.00037977,10]
[394140740,1763318946385,150.0,0.00039999,2]
[394140741,1763318946657,150.0,0.00039999,120]
[394140742,1763318946909,150.0,0.00039999,10]
[394140743,1763318947173,150.0,0.00039999,7]
[394140744,1763318947431,150.0,0.00039999,30]
[394140745,1763318947694,150.0,0.00039999,20]
[394140746,1763318947984,150.0,0.00039989,3]
[394140747,1763318948573,150.0,0.00039799,5]
[394140748,1763318948998,150.0,0.00039299,24]
[394140749,1763318949283,150.0,0.00038538,15]
[394140750,1763318949529,150.0,0.00038499,12]
[394140751,1763318949610,5239.47,0.00038,14]
[394140752,1763318949980,150.0,0.00038488,14]
[394140753,1763318950251,150.0,0.00038017,31]
[394140754,1763318952479,163.03,0.00038,7]
[394140755,1763318952507,150.0,0.00037827,42]
[394140756,1763318952736,150.0,0.00037799,25]
[394140757,1763318953000,150.0,0.00037778,9]
[394140758,1763318953252,150.0,0.00037393,60]
[394140759,1763318953498,150.0,0.00036636,8]
[394140760,1763318953775,150.0,0.00036163,90]
[394140761,1763318953828,1079.28,0.00037977,10]
[394140762,1763318954026,150.0,0.00035917,16]
[394140763,1763318954277,150.0,0.00035299,17]
[394140764,1763318954561,150.0,0.00035122,75]
[394140765,1763318955162,150.0,0.00034999,13]
[394140766,1763318955449,150.0,0.00034353,6]
[394140767,1763318955691,150.0,0.00033199,117]
[394140768,1763318955936,150.0,0.00032799,4]
[394140769,1763318956203,150.0,0.00031889,110]
[394140770,1763318956795,150.0,0.00031803,106]
[394140771,1763318957083,150.0,0.00031718,102]
[394140772,1763318957319,150.0,0.00031632,98]
[394140773,1763318957703,150.0,0.00031547,95]
[394140774,1763318957989,150.0,0.00031461,91]
[394140775,1763318958252,150.0,0.00031376,87]
[394140776,1763318958896,150.0,0.00031291,83]
[394140777,1763318959096,150.0,0.00031205,80]
[394140778,1763318959345,150.0,0.0003112,76]
[394140779,1763318959587,150.0,0.00031034,72]
[394140780,1763318959836,150.0,0.00030949,69]
[394140781,1763318960084,150.0,0.00030864,65]
[394140782,1763318960318,150.0,0.00030778,61]
[394140783,1763318960557,150.0,0.00030693,57]
[394140784,1763318960824,150.0,0.00030607,54]
[394140785,1763318961066,150.0,0.00030522,50]
[394140786,1763318961312,150.0,0.00030437,46]
[394140787,1763318964810,899.4,0.00037977,10]
[394140788,1763318965883,150.0,0.00030266,39]
[394140789,1763318966124,150.0,0.0003018,35]
[394140790,1763318966353,150.0,0.0003001,28]
[394140791,1763318975747,749.5,0.00037977,10]
[394140792,1763318986785,624.58,0.00037977,10]
[394140793,1763318988538,400.59295362,0.00037987,2]
[394140794,1763318991030,400.59295362,0.00037987,20]
[394140795,1763318991533,400.59295362,0.00032877,120]
[394140796,1763318993096,4640.63633852,0.00037887,2]
[394140797,1763319008259,-81354.73525752,0.00037987,7]
[394140798,1763319008283,-6521.52871463,0.00037987,7]
[394140799,1763319008305,-329.42887015,0.00037987,2]
[394140800,1763319008328,-294.00740406,0.00037987,2]
[394140801,1763319008351,-641.96051327,0.00037987,2]
[394140802,1763319008373,-1371.92616715,0.00037987,2]
[394140803,1763319008396,-157.77975846,0.00037987,2]
[394140804,1763319008418,-707.7533436,0.00037987,2]
[394140805,1763319008440,-21732.24186152,0.00037987,2]
[394140806,1763319008463,-6343.57140619,0.00037987,2]
[394140807,1763319008485,-158.7864761,0.00037987,2]
[394140808,1763319008514,-1729.94040816,0.00037987,2]
[394140809,1763319008538,-7535.50433252,0.00037987,2]
[394140810,1763319008562,-2091.95114401,0.00037987,2]
[394140811,1763319008586,-19054.27849772,0.00037987,2]
[394140812,1763319008608,-511.42448032,0.00037987,2]
[394140813,1763319008631,-180.65503262,0.00037987,2]
[394140814,1763319008653,-471.39241264,0.00037987,2]
[394140815,1763319008676,-994.44528595,0.00037987,2]
[394140816,1763319008701,-190.56651282,0.00037987,2]
[394140817,1763319008727,-1407.24617472,0.00037987,2]
[394140818,1763319008749,-5939.42398377,0.00037987,2]
[394140819,1763319008773,-10760.2966196,0.00037987,2]
[394140820,1763319008796,-656.00105161,0.00037987,2]
[394140821,1763319008821,-204.46993902,0.00037987,2]
[394140822,1763319008844,-2920.0,0.00037987,2]
[394140823,1763319008868,-387.69198464,0.00037987,2]
[394140824,1763319008893,-1459.38758786,0.00037987,2]
[394140825,1763319008917,-202.83475723,0.00037987,2]
[394140826,1763319008948,-3170.15387121,0.00037987,2]
[394140827,1763319008975,-367.32672492,0.00037987,2]
[394140828,1763319008998,-167.80145327,0.00037987,2]
[394140829,1763319009022,-151.45187999,0.00037987,2]
[394140830,1763319009046,-260.4472582,0.00037987,2]
[394140831,1763319009216,-58500.0,0.00037987,2]
[394140832,1763319009246,-618.0,0.00037987,2]
[394140833,1763319009271,-1672.70993628,0.00037987,2]
[394140834,1763319009303,-90078.0216184,0.00037987,2]
[394140835,1763319009332,-87565.89556718,0.00037987,2]
[394140836,1763319009359,-22830.83041439,0.00037987,2]
[394140837,1763319009384,-52102.46429356,0.00037987,2]
[394140838,1763319009409,-112620.38717544,0.00037987,2]
[394140839,1763319009433,-30669.97826024,0.00037987,2]
[394140840,1763319009460,-178424.35104566,0.00037987,2]
[394140841,1763319009484,-326.13244355,0.00037987,2]
[394140842,1763319009507,-33801.52238294,0.00037987,7]
[394140843,1763319009529,-31651.85390129,0.00037987,7]
[394140844,1763319009551,-309785.36093274,0.00037987,7]
[394140845,1763319009575,-250.0,0.00037987,10]
[394140846,1763319009597,-250.0,0.00037987,10]
[394140847,1763319009620,-250.0,0.00037987,10]
[394140848,1763319009642,-307.151699,0.00037987,10]
[394140875,1763319032326,-300.0,0.00037986,2]
[394140876,1763319032336,-2000.0,0.00037986,2]
[394140877,1763319032346,-2000.0,0.00037987,20]
[394140878,1763319032355,-946.07,0.00038096,2]
[394140879,1763319032365,-250.0,0.00039999,120]
[394140881,1763319032374,-250.0,0.00039999,120]
[394140883,1763319032383,-250.0,0.00039999,120]
[394140885,1763319032393,-250.0,0.00039999,120]
[394140887,1763319032403,-250.0,0.00039999,120]
[394140889,1763319032412,-250.0,0.00039999,120]
[394140891,1763319032421,-250.0,0.00039999,120]
[394140893,1763319032430,-250.0,0.00039999,120]
[394140895,1763319032440,-250.0,0.00039999,120]
[394140897,1763319032449,-250.0,0.00039999,120]
[394140899,1763319032458,-250.0,0.00039999,120]
[394140900,1763319032470,-250.0,0.00039999,120]
[394140902,1763319032480,-250.0,0.00039999,120]
[394140904,1763319032489,-250.0,0.00039999,120]
[394140906,1763319032498,-250.0,0.00039999,120]
[394140908,1763319032508,-250.0,0.00039999,120]
[394140910,1763319032517,-250.0,0.00039999,120]
[394140913,1763319032527,-250.0,0.00039999,120]
[394140917,1763319032537,-250.0,0.00039999,120]
[394140920,1763319032546,-250.0,0.00039999,120]
[394140922,1763319032556,-500.0,0.00040167,2]
[394140923,1763319032566,-161.923838,0.00040274,30]
[394140925,1763319032576,-417.56893297,0.000404,120]
[394140927,1763319032586,-649.63966319,0.000404,120]
[394140929,1763319032596,-160.43057434,0.000404,120]
[394140931,1763319032605,-194.86508242,0.000404,120]
[394140933,1763319032614,-180.47948159,0.000404,120]
[394140935,1763319032623,-164.21721063,0.000404,120]
[394140937,1763319032632,-1664.87829225,0.000404,120]
[394140939,1763319032642,-479.53,0.00040466,30]
[394140941,1763319032652,-6214.4424842,0.00040563,2]
[394140943,1763319032661,-161.923838,0.00040575,30]
[394140945,1763319032670,-161.923838,0.00040877,30]
[394140947,1763319032679,-500.0,0.000409,30]
[394140949,1763319032688,-500.0,0.00041077,30]
[394140951,1763319032698,-500.0,0.00041096,120]
[394140953,1763319032707,-197.18,0.00041096,120]
[394140955,1763319032720,-161.923838,0.00041178,30]
[394140957,1763319032729,-9012.32,0.00041179,7]
[394140959,1763319032739,-600.0,0.00041262,30]
[394140960,1763319032748,-500.0,0.00041263,2]
[394140962,1763319032758,-500.0,0.0004137,120]
[394140964,1763319032768,-161.923838,0.00041479,30]
[394140965,1763319032778,-159.0,0.000415,120]
[394140966,1763319032788,-1892.15,0.00041559,2]
[394140967,1763319032797,-417.56893297,0.000416,120]
[394140968,1763319032807,-649.63966319,0.000416,120]
[394140969,1763319032818,-160.43057434,0.000416,120]
[394140970,1763319032827,-164.21721063,0.000416,120]
[394140971,1763319032837,-1664.87829225,0.000416,120]
[394140972,1763319032847,-500.0,0.00041644,120]
[394140973,1763319032858,-6784.65033449,0.00041674,79]
[394140974,1763319032868,-161.923838,0.00041781,30]
[394140975,1763319032877,-3187.99,0.00041844,7]
[394140976,1763319032886,-366.0,0.0004189,120]
[394140977,1763319032895,-500.0,0.00041918,120]
[394140978,1763319032905,-200.0,0.00042,120]
[394140979,1763319032915,-502.9486481,0.00042,20]
[394140980,1763319032924,-500.0,0.00042192,120]
[394140981,1763319032934,-500.0,0.00042278,30]
[394140982,1763319032944,-263.95,0.000423,30]
[394140983,1763319032953,-500.0,0.00042359,2]
[394140984,1763319032963,-479.53,0.00042393,30]
[394140985,1763319032974,-1727.34,0.000424,14]
[394140986,1763319032984,-500.0,0.00042466,120]
[394140987,1763319032994,-1960.81,0.000425,7]
[394140988,1763319033004,-5239.47,0.000425,14]
[394140989,1763319033015,-600.0,0.0004259,30]
[394140990,1763319033025,-500.0,0.0004274,120]
[394140991,1763319033035,-417.56893297,0.000428,120]
[394140992,1763319033045,-649.63966319,0.000428,120]
[394140993,1763319033055,-164.21721063,0.000428,120]
[394140994,1763319033066,-1664.87829225,0.000428,120]
[394140995,1763319033075,-500.0,0.00043014,120]
[394140996,1763319033086,-600.0,0.00043014,30]
[394140997,1763319033096,-500.0,0.00043027,30]
[394140998,1763319033106,-4640.63633845,0.00043099,28]
[394140999,1763319033115,-46927.4,0.00043108,7]
[394141000,1763319033126,-4814.58,0.00043108,7]
[394141001,1763319033135,-135052.2,0.00043108,7]
[394141002,1763319033145,-500.0,0.00043288,120]
[394141003,1763319033155,-6214.4424842,0.00043408,2]
[394141004,1763319033165,-500.0,0.00043455,2]
[394141005,1763319033175,-500.0,0.00043562,120]
[394141006,1763319033184,-500.0,0.00043575,30]
[394141007,1763319033193,-500.0,0.00043621,30]
[394141008,1763319033203,-4677.85,0.00043718,7]
[394141009,1763319033212,-500.0,0.00043836,120]
[394141010,1763319033228,-505.69660356,0.00043889,7]
[394141011,1763319033237,-271612.12547471,0.0004389,3]
[394141012,1763319033250,-20370.87864729,0.0004389,3]
[394141013,1763319033260,-213.42144662,0.0004389,3]
[394141014,1763319033270,-100131.15003716,0.000439,30]
[394141015,1763319033279,-200.0,0.00044,120]
[394141016,1763319033289,-499.3,0.00044018,30]
[394141017,1763319033300,-417.56893297,0.000441,120]
[394141018,1763319033309,-649.63966319,0.000441,120]
[394141019,1763319033319,-164.21721063,0.000441,120]
[394141020,1763319033329,-199.0,0.00044109,30]
[394141021,1763319033338,-500.0,0.0004411,120]
[394141022,1763319033348,-4198.31,0.00044358,7]
[394141023,1763319033357,-500.0,0.00044384,120]
[394141024,1763319033366,-600.0,0.00044429,30]
[394141025,1763319033376,-500.0,0.00044551,2]
[394141026,1763319033386,-500.0,0.00044658,120]
[394141027,1763319033396,-159.0,0.000447,120]
[394141028,1763319033406,-600.0,0.00044768,30]
[394141029,1763319033415,-500.0,0.00044932,120]
[394141030,1763319033425,-228.81743454,0.00045,120]
[394141031,1763319033435,-233.02108129,0.00045,120]
[394141032,1763319033444,-1675.60228847,0.00045,4]
[394141033,1763319033454,-2838.22,0.00045022,2]
[394141034,1763319033464,-500.0,0.00045126,60]
[394141035,1763319033476,-4781.7,0.00045161,7]
[394141036,1763319033485,-145991.502061,0.00045195,3]
[394141037,1763319033495,-263.95,0.000452,30]
[394141038,1763319033505,-500.0,0.00045205,120]
[394141039,1763319033515,-184.6151934,0.00045227,120]
[394141040,1763319033524,-1727.34,0.000454,14]
[394141041,1763319033534,-500.0,0.00045461,60]
[394141042,1763319033543,-199.0,0.00045479,30]
[394141043,1763319033552,-500.0,0.00045479,120]
[394141044,1763319033562,-5239.47,0.000455,14]
[394141045,1763319033572,-163.03,0.000455,14]
[394141046,1763319033581,-500.0,0.00045592,60]
[394141047,1763319033590,-600.0,0.00045603,60]
[394141048,1763319033599,-600.0,0.00045606,60]
[394141049,1763319033609,-500.0,0.00045647,2]
[394141050,1763319033619,-500.0,0.00045753,120]
[394141051,1763319033629,-6155.09,0.00045775,7]
[394141052,1763319033639,-500.0,0.00045831,60]
[394141053,1763319033649,-1749.11300393,0.000459,120]
[394141054,1763319033658,-200.0,0.00046,120]
[394141055,1763319033668,-1252.67078614,0.00046,30]
[394141056,1763319033678,-500.0,0.00046027,120]
[394141057,1763319033687,-600.0,0.00046075,60]
[394141058,1763319033696,-905.392276,0.00046143,2]
[394141059,1763319033706,-6220.65692669,0.00046254,2]
[394141060,1763319033718,-500.0,0.00046301,120]
[394141061,1763319033727,-1203.64,0.00046443,7]
[394141062,1763319033737,-500.0,0.00046575,120]
[394141063,1763319033746,-177.02042862,0.00046575,2]
[394141064,1763319033756,-500.0,0.00046661,60]
[394141065,1763319033765,-500.0,0.00046743,2]
[394141066,1763319033775,-500.0,0.00046786,60]
[394141067,1763319033784,-199.0,0.00046849,30]
[394141068,1763319033794,-500.0,0.00046849,120]
[394141069,1763319033804,-500.0,0.00046912,60]
[394141070,1763319033813,-2460.0,0.00047095,7]
[394141071,1763319033823,-516.84,0.00047123,120]
[394141072,1763319033833,-600.0,0.00047395,60]
[394141073,1763319033843,-263.95,0.000474,30]
[394141074,1763319033853,-850.0,0.00047475,120]
[394141075,1763319033863,-600.0,0.00047496,60]
[394141076,1763319033872,-500.0,0.00047502,60]
[394141077,1763319033883,-8009.0,0.000477,7]
[394141078,1763319033893,-1280.32253342,0.000478,120]
[394141079,1763319033902,-1727.34,0.000478,14]
[394141080,1763319033912,-500.0,0.00047839,2]
[394141081,1763319033922,-500.0,0.00047844,60]
[394141082,1763319033931,-500.0,0.00047857,60]
[394141083,1763319033941,-159.0,0.000479,120]
[394141084,1763319033951,-5239.47,0.000479,14]
[394141085,1763319033961,-510.69324175,0.00047941,60]
[394141086,1763319033973,-1000.0,0.00047987,7]
[394141087,1763319033982,-200.0,0.00048,120]
[394141088,1763319033992,-722.59183127,0.00048,120]
[394141089,1763319034002,-300.0,0.0004811,60]
[394141090,1763319034011,-27528.07401372,0.00048154,4]
[394141125,1763319038207,-107858.60361186,0.00048154,4]
[394141131,1763319038260,-10604.82443542,0.00048154,4]
[394141133,1763319038271,-373.22629621,0.00048173,10]
[394141135,1763319038281,-199.0,0.00048219,30]
[394141137,1763319038291,-600.0,0.00048272,60]
[394141139,1763319038301,-500.0,0.00048311,60]
[394141141,1763319038313,-4640.63633845,0.00048312,28]
[394141143,1763319038323,-500.0,0.00048338,60]
[394141145,1763319038339,-500.0,0.00048388,60]